bitfinex-derivatives/quotes_BTCF0:USTF0_20250117
["timestamp","ask_amount","ask_price","bid_price","bid_amount"]
[1737090866565,0.049133,101780.0,101770.0,0.79868427]
[1737090867276,0.049133,101780.0,101770.0,0.74954727]
[1737090867777,0.049133,101780.0,101770.0,1.19876325]
[1737090867977,0.049133,101780.0,101770.0,1.20852755]
[1737090868672,0.049133,101780.0,101770.0,1.4414115]
[1737090870777,0.049133,101780.0,101770.0,1.55859587]
[1737090872774,0.17087574,101780.0,101770.0,1.4611245]
[1737090872972,0.11000437,101780.0,101770.0,1.4611245]
[1737090873675,0.11000437,101780.0,101770.0,1.11105618]
[1737090873878,0.17087574,101780.0,101770.0,1.11105618]
[1737090874069,0.17087574,101780.0,101770.0,0.75025618]
[1737090874671,0.17087574,101780.0,101770.0,0.9832152]
[1737090875578,0.17087574,101780.0,101770.0,0.24272332]
[1737090876175,0.53167574,101780.0,101770.0,0.24272332]
[1737090878678,0.53167574,101780.0,101770.0,0.0097643]
[1737090878881,0.049138,101770.0,101760.0,0.23338902]
[1737090879083,0.66918074,101770.0,101760.0,0.23338902]
[1737090880083,0.66918074,101770.0,101760.0,0.24309138]
[1737090880669,0.66918074,101770.0,101760.0,0.01013236]
[1737090881480,0.24750937,101770.0,101760.0,0.01013236]
[1737090881687,0.60830937,101770.0,101760.0,0.01013236]
[1737090882581,0.60830937,101770.0,101760.0,0.00043]
[1737090887087,0.66918074,101770.0,101760.0,0.00043]
[1737090890095,0.66918074,101770.0,101760.0,1e-06]
[1737090890794,0.547438,101770.0,101760.0,1e-06]
[1737090890997,0.66918074,101770.0,101760.0,1e-06]
[1737090893792,0.547438,101770.0,101760.0,1e-06]
[1737090893991,0.66918074,101770.0,101760.0,1e-06]
[1737090894594,0.73005211,101770.0,101760.0,1e-06]
[1737090894791,0.049147,101750.0,101740.0,0.41715373]
[1737090894993,0.53168974,101750.0,101740.0,0.41715373]
[1737090895391,0.57958974,101750.0,101740.0,0.18419471]
[1737090895992,0.62888974,101750.0,101740.0,0.1745473]
[1737090896193,0.193547,101750.0,101740.0,0.1745473]
[1737090896387,0.67608974,101750.0,101740.0,0.1745473]
[1737090898305,0.17089474,101740.0,101730.0,0.23295902]
[1737090898503,0.23176611,101740.0,101730.0,0.23295902]
[1737090898806,0.53169474,101740.0,101730.0,0.23295902]
[1737090899392,0.59256611,101740.0,101720.0,0.24302035]
[1737090899599,0.455557,101730.0,101720.0,0.24302035]
[1737090899902,0.51642837,101730.0,101720.0,0.24302035]
[1737090900695,0.51642837,101730.0,101720.0,0.01006133]
[1737090900895,0.46727137,101730.0,101710.0,0.68775902]
[1737090901097,0.11003337,101720.0,101710.0,0.68775902]
[1737090901613,0.11003337,101720.0,101710.0,0.70313095]
[1737090905004,0.11003337,101720.0,101710.0,0.76400232]
[1737090905406,0.11003337,101720.0,101710.0,0.70313095]
[1737090905809,0.11003337,101720.0,101710.0,0.76400232]
[1737090906108,0.11003337,101720.0,101710.0,0.77365015]
[1737090908003,0.46727137,101730.0,101710.0,0.77365015]
[1737090908197,0.049162,101720.0,101710.0,0.77365015]
[1737090909515,0.049162,101720.0,101710.0,0.82281715]
[1737090909717,0.049154,101740.0,101730.0,0.06087137]
[1737090909919,0.049154,101740.0,101730.0,0.97262837]
[1737090910118,0.049149,101750.0,101730.0,0.97262837]
[1737090910416,0.049149,101750.0,101740.0,0.42167137]
[1737090911315,0.049149,101750.0,101740.0,0.3608]
[1737090912218,0.049149,101750.0,101740.0,0.59375902]
[1737090913212,0.049149,101750.0,101740.0,0.60912556]
[1737090916424,0.049149,101750.0,101740.0,0.61895888]
[1737090920837,0.049149,101750.0,101740.0,0.60359234]
[1737090921329,0.09279913,101760.0,101740.0,0.74554347]
[1737090921330,0.049144,101760.0,101740.0,0.74554347]
[1737090921530,0.049144,101760.0,101750.0,0.4097]
[1737090921841,0.14194313,101760.0,101750.0,0.4097]
[1737090924831,0.049144,101760.0,101750.0,0.50249913]
[1737090925036,0.049144,101760.0,101750.0,0.59774613]
[1737090925238,0.049144,101760.0,101750.0,0.504947]
[1737090928238,0.049144,101760.0,101750.0,0.552047]
[1737090929334,0.00147479,101770.0,101760.0,0.049142]
[1737090929539,0.00147479,101770.0,101760.0,0.50274113]
[1737090930244,0.14193213,101780.0,101760.0,0.50274113]
[1737090930446,0.14193213,101780.0,101770.0,0.3608]
[1737090931333,0.11000541,101780.0,101770.0,0.3608]
[1737090931537,0.049133,101780.0,101770.0,0.42167241]
[1737090932231,0.049133,101780.0,101770.0,0.47081041]
[1737090936248,0.049133,101780.0,101770.0,0.48075374]
[1737090937744,0.00147401,101810.0,101770.0,1.6762263]
[1737090937944,0.00147401,101810.0,101800.0,0.48254482]
[1737090938136,0.1378,101820.0,101810.0,0.049118]
[1737090938332,0.1378,101820.0,101810.0,0.47079041]
[1737090939455,0.1378,101820.0,101810.0,0.50258267]
[1737090939933,0.0931,101820.0,101810.0,0.50258267]
[1737090940139,0.0477,101820.0,101810.0,0.50258267]
[1737090940845,0.544404,101840.0,101820.0,0.04911]
[1737090941039,0.544404,101840.0,101820.0,0.14177467]
[1737090941350,0.500104,101840.0,101820.0,0.07377466]
[1737090941551,0.500104,101840.0,101820.0,0.12288666]
[1737090943447,0.451,101840.0,101820.0,0.12288666]
[1737090943647,0.093909,101830.0,101820.0,0.049112]
[1737090944054,0.093909,101830.0,101810.0,0.51245788]
[1737090944244,0.093909,101830.0,101820.0,0.09266467]
[1737090945454,0.093909,101830.0,101820.0,0.45346467]
[1737090946148,0.093909,101830.0,101820.0,0.50257767]
[1737090946343,0.093909,101830.0,101820.0,0.43457766]
[1737090951349,0.093909,101830.0,101820.0,0.45346467]
[1737090951555,0.093909,101830.0,101820.0,0.50257767]
[1737090953148,0.093909,101830.0,101820.0,0.45346467]
[1737090953368,0.049111,101830.0,101820.0,0.45346467]
[1737090953865,0.049111,101830.0,101820.0,0.3608]
[1737090954257,0.049113,101820.0,101810.0,0.46334088]
[1737090954554,0.093713,101820.0,101810.0,0.37067621]
[1737090954757,0.137813,101820.0,101810.0,0.46334088]
[1737090955150,0.137813,101820.0,101810.0,0.37067621]
[1737090955350,0.23047767,101820.0,101810.0,0.37067621]
[1737090955566,0.049118,101810.0,101800.0,0.59375902]
[1737090955865,0.049118,101810.0,101800.0,0.3608]
[1737090958356,0.049118,101810.0,101800.0,0.37080622]
[1737090960461,0.049118,101810.0,101800.0,0.60376524]
[1737090961366,0.049118,101810.0,101800.0,1.11115482]
[1737090962669,0.14178267,101810.0,101800.0,1.11115482]
[1737090965860,0.14178267,101810.0,101800.0,1.34305946]
[1737090966071,0.14178267,101810.0,101800.0,1.34300517]
[1737090966770,0.14178267,101810.0,101800.0,0.97225324]
[1737090966969,0.50258267,101810.0,101800.0,0.97225324]
[1737090968162,0.50258267,101810.0,101800.0,0.23190464]
[1737090969274,0.049123,101800.0,101790.0,0.59270464]
[1737090969464,0.14178767,101800.0,101790.0,0.59270464]
[1737090970168,0.23418767,101800.0,101790.0,0.59270464]
[1737090971376,0.28198767,101800.0,101790.0,0.59270464]
[1737090974974,0.64278767,101800.0,101790.0,0.23190464]
[1737090975171,0.64278767,101800.0,101780.0,0.60245684]
[1737090975379,0.049128,101790.0,101780.0,0.60245684]
[1737090976169,0.14179267,101790.0,101780.0,0.3705522]
[1737090977875,0.23445734,101790.0,101780.0,0.0097522]
[1737090978075,0.049133,101780.0,101770.0,0.69047829]
[1737090978275,0.18899767,101780.0,101770.0,0.32967829]
[1737090979183,0.096333,101780.0,101770.0,0.32967829]
[1737090979884,0.096333,101780.0,101770.0,0.09777365]
[1737090980878,0.049133,101780.0,101770.0,0.46826433]
[1737090981078,0.049133,101780.0,101770.0,0.560929]
[1737090983588,0.049133,101780.0,101770.0,0.79283364]
[1737090986595,0.049133,101780.0,101770.0,1.5824415]
[1737090987599,0.049133,101780.0,101770.0,1.48977683]
[1737090989286,0.049133,101780.0,101770.0,1.5824415]
[1737090990089,0.049133,101780.0,101770.0,1.35053686]
[1737090991097,0.049133,101780.0,101770.0,0.9013429]
[1737090992193,0.049133,101780.0,101770.0,0.91363196]
[1737090992500,0.049133,101780.0,101770.0,1.04072873]
[1737090993194,0.049133,101780.0,101770.0,1.27016091]
[1737090993597,0.049133,101780.0,101770.0,1.25787171]
[1737090993800,0.049133,101780.0,101770.0,1.27016097]
[1737090995199,0.14179767,101780.0,101770.0,1.22102297]
[1737090995406,0.14179767,101780.0,101770.0,1.11243371]
[1737090995912,0.14179767,101780.0,101770.0,0.75163371]
[1737090996202,0.23179767,101780.0,101770.0,0.75163371]
[1737090996397,0.27589767,101780.0,101770.0,0.75163371]
[1737090996905,0.63669767,101780.0,101770.0,0.74046938]
[1737090997101,0.63669767,101780.0,101770.0,0.23235468]
[1737090998609,0.049138,101770.0,101760.0,0.3608]
[1737090998809,0.14180267,101770.0,101760.0,0.3608]
[1737090999908,0.049142,101760.0,101750.0,0.60286858]
[1737091000107,0.18680667,101760.0,101750.0,0.60286858]
[1737091000613,0.18680667,101760.0,101750.0,0.61823438]
[1737091001316,0.18680667,101760.0,101750.0,0.60286858]
[1737091002213,0.18680667,101760.0,101750.0,0.3705139]
[1737091005212,0.049147,101750.0,101740.0,0.03058]
[1737091005412,0.59527634,101750.0,101740.0,0.03058]
[1737091005616,0.50261167,101750.0,101740.0,0.03058]
[1737091005815,0.409947,101750.0,101740.0,0.03058]
[1737091006014,0.50261167,101750.0,101740.0,0.03058]
[1737091006217,0.50261167,101750.0,101730.0,0.0453]
[1737091006218,0.049152,101740.0,101730.0,0.0453]
[1737091006410,0.14181667,101740.0,101730.0,0.0453]
[1737091007213,0.049157,101730.0,101720.0,0.46658058]
[1737091007420,0.14182167,101730.0,101720.0,0.46658058]
[1737091007612,0.59528634,101730.0,101720.0,0.0957]
[1737091007817,0.59528634,101730.0,101720.0,0.0479]
[1737091008116,0.54612934,101730.0,101710.0,0.39349881]
[1737091008418,0.14182667,101720.0,101710.0,0.43869881]
[1737091008916,0.14182667,101720.0,101710.0,0.14742291]
[1737091010015,0.14182667,101720.0,101710.0,0.10052291]
[1737091010519,0.50262667,101720.0,101710.0,0.0452]
[1737091010722,0.049166,101710.0,101700.0,0.5078]
[1737091011015,0.14183067,101710.0,101700.0,0.5557]
[1737091012315,0.14183067,101710.0,101700.0,0.56544081]
[1737091014410,0.14183067,101710.0,101700.0,0.20464081]
[1737091015013,0.14183067,101710.0,101700.0,0.1949]
[1737091015223,0.50263067,101710.0,101700.0,0.1949]
[1737091016225,0.14183067,101710.0,101700.0,0.1949]
[1737091017115,0.049166,101710.0,101700.0,0.64836467]
[1737091017316,0.049166,101710.0,101700.0,0.69753567]
[1737091017830,0.049166,101710.0,101700.0,0.62024271]
[1737091018422,0.09266467,101720.0,101700.0,0.62024271]
[1737091019018,0.09266467,101720.0,101700.0,0.71290738]
[1737091019213,0.049166,101710.0,101700.0,0.71290738]
[1737091019826,0.049166,101710.0,101700.0,0.62024271]
[1737091020226,0.049166,101710.0,101700.0,0.79360596]
[1737091020525,0.049153,101740.0,101700.0,0.9789353]
[1737091020726,0.049153,101740.0,101720.0,0.50262567]
[1737091020727,0.049155,101740.0,101720.0,0.50262567]
[1737091020916,0.049155,101740.0,101730.0,0.0963]
[1737091021120,0.14181967,101740.0,101730.0,0.0963]
[1737091023729,0.14181967,101740.0,101730.0,0.1405]
[1737091025129,0.14181967,101740.0,101730.0,0.0476]
[1737091025319,0.14181967,101740.0,101720.0,0.17336325]
[1737091025522,0.14182167,101730.0,101720.0,0.17336325]
[1737091025928,0.049157,101730.0,101720.0,0.17336325]
[1737091026134,0.049157,101730.0,101720.0,0.18873348]
[1737091026938,0.049157,101730.0,101720.0,0.59338809]
[1737091027736,0.049157,101730.0,101720.0,0.23258809]
[1737091027936,0.14182167,101730.0,101720.0,0.18342609]
[1737091028435,0.14182167,101730.0,101720.0,0.02543287]
[1737091029025,0.14182167,101730.0,101720.0,0.01006284]
[1737091029228,0.049162,101720.0,101710.0,0.67296325]
[1737091029425,0.049162,101720.0,101710.0,0.31216325]
[1737091029426,0.14182667,101720.0,101710.0,0.31216325]
[1737091029825,0.14182667,101720.0,101710.0,0.17336325]
[1737091030040,0.14182667,101720.0,101710.0,0.18873474]
[1737091031144,0.50262667,101720.0,101710.0,0.18873474]
[1737091031839,0.50262667,101720.0,101710.0,0.17336325]
[1737091032426,0.049166,101710.0,101700.0,0.77176325]
[1737091033040,0.14183067,101710.0,101700.0,0.78185303]
[1737091033441,0.14183067,101710.0,101700.0,0.82182125]
[1737091034040,0.14183067,101710.0,101700.0,0.79722542]
[1737091034746,0.14183067,101710.0,101700.0,0.43642542]
[1737091035242,0.14183067,101710.0,101700.0,0.79722542]
[1737091035438,0.14183067,101710.0,101700.0,0.91513807]
[1737091035942,0.14183067,101710.0,101700.0,0.86973807]
[1737091036645,0.14183067,101710.0,101700.0,1.30700401]
[1737091037644,0.14183067,101710.0,101700.0,1.65707233]
[1737091040042,0.14183067,101710.0,101700.0,1.30700401]
[1737091040242,0.14183067,101710.0,101700.0,1.30705726]
[1737091041937,0.14183067,101710.0,101700.0,1.31935537]
[1737091042240,0.50263067,101710.0,101700.0,0.91245537]
[1737091042447,0.50263067,101710.0,101700.0,0.90015726]
[1737091044242,0.50263067,101710.0,101700.0,0.17161542]
[1737091045943,0.50263067,101710.0,101700.0,0.16152564]
[1737091046137,0.50263067,101710.0,101700.0,0.11542564]
[1737091047136,0.50263067,101710.0,101700.0,0.10005325]
[1737091047347,0.50263067,101710.0,101700.0,0.27448077]
[1737091048635,0.50263067,101710.0,101700.0,0.10005325]
[1737091051940,0.59529534,101710.0,101700.0,0.10005325]
[1737091052141,0.50263067,101710.0,101700.0,0.10005325]
[1737091052539,0.59529534,101710.0,101700.0,0.10005325]
[1737091053853,0.049171,101700.0,101690.0,0.17442752]
[1737091054147,0.049171,101700.0,101680.0,0.33199563]
[1737091054148,0.049176,101690.0,101680.0,0.33199563]
[1737091054347,0.14184067,101690.0,101680.0,0.33199563]
[1737091054549,0.14184067,101690.0,101680.0,0.34737189]
[1737091054736,0.50264067,101690.0,101680.0,0.28770378]
[1737091054943,0.50264067,101690.0,101680.0,0.18980378]
[1737091055342,0.50264067,101690.0,101680.0,0.17442752]
[1737091056547,0.50264067,101690.0,101660.0,1.07515976]
[1737091056754,0.14185067,101670.0,101660.0,0.74047057]
[1737091057250,0.049186,101670.0,101660.0,0.74047057]
[1737091057750,0.14185067,101670.0,101660.0,0.74047057]
[1737091058451,0.049186,101670.0,101660.0,0.74047057]
[1737091059551,0.049186,101670.0,101660.0,0.59064911]
[1737091062542,0.049186,101670.0,101660.0,0.76490278]
[1737091062743,0.049186,101670.0,101660.0,0.7277315]
[1737091063552,0.049186,101670.0,101660.0,0.70312544]
[1737091063752,0.14185067,101670.0,101660.0,0.70312544]
[1737091066859,0.14185067,101670.0,101660.0,0.34232544]
[1737091068058,0.14185067,101670.0,101660.0,0.16807177]
[1737091069058,0.14185067,101670.0,101660.0,0.34232544]
[1737091069552,0.14185067,101670.0,101660.0,0.70312544]
[1737091069759,0.14185067,101670.0,101660.0,0.34232544]
[1737091074760,0.23451534,101670.0,101660.0,0.34232544]
[1737091076254,0.59531534,101670.0,101660.0,0.3323328]
[1737091076461,0.59531534,101670.0,101660.0,0.2375328]
[1737091076661,0.64081534,101670.0,101660.0,0.2375328]
[1737091076965,0.64081534,101670.0,101660.0,0.45446346]
[1737091077859,0.049191,101660.0,101650.0,0.41430411]
[1737091078160,0.14185567,101660.0,101650.0,0.41430411]
[1737091078365,0.14185567,101660.0,101650.0,0.4542945]
[1737091080063,0.14185567,101660.0,101650.0,0.28004083]
[1737091080856,0.049191,101660.0,101650.0,0.7458098]
[1737091081058,0.14185567,101660.0,101650.0,0.29234513]
[1737091081258,0.14185567,101660.0,101650.0,0.65314513]
[1737091081564,0.14185567,101660.0,101650.0,1.38018612]
[1737091082161,0.14185567,101660.0,101650.0,1.35557665]
[1737091082560,0.14185567,101660.0,101650.0,1.47333518]
[1737091084061,0.14185567,101660.0,101650.0,1.47948472]
[1737091084263,0.14185567,101660.0,101650.0,1.18205928]
[1737091084962,0.14185567,101660.0,101650.0,1.18205872]
[1737091087166,0.14185567,101660.0,101650.0,1.16975498]
[1737091088765,0.14185567,101660.0,101650.0,1.3450456]
[1737091089264,0.14185567,101660.0,101650.0,1.36965335]
[1737091090556,0.14185567,101660.0,101650.0,1.00885335]
[1737091090759,0.14185567,101660.0,101650.0,0.28122218]
[1737091091557,0.14185567,101660.0,101650.0,0.25661443]
[1737091091965,0.14185567,101660.0,101650.0,0.43176996]
[1737091095461,0.049191,101660.0,101650.0,0.43176996]
[1737091095656,0.049191,101660.0,101650.0,0.90928051]
[1737091096062,0.14185567,101660.0,101650.0,0.90928051]
[1737091096662,0.14185567,101660.0,101650.0,1.11235797]
[1737091096863,0.14185567,101660.0,101650.0,1.12466201]
[1737091098562,0.14185567,101660.0,101650.0,1.11235797]
[1737091099063,0.14185567,101660.0,101650.0,1.1246622]
[1737091101970,0.14185567,101660.0,101650.0,0.7638622]
[1737091102166,0.14185567,101660.0,101650.0,1.1246622]
[1737091102366,0.14185567,101660.0,101650.0,0.75155797]
[1737091103274,0.14185567,101660.0,101650.0,0.02312157]
[1737091104466,0.14185567,101660.0,101650.0,0.25672382]
[1737091105172,0.049191,101660.0,101650.0,0.71018849]
[1737091105378,0.049191,101660.0,101650.0,0.77168737]
[1737091105677,0.049191,101660.0,101650.0,0.75938349]
[1737091105976,0.049191,101660.0,101650.0,0.6790222]
[1737091106176,0.049191,101660.0,101650.0,0.6298272]
[1737091106378,0.14185567,101660.0,101650.0,0.6298272]
[1737091106567,0.14185567,101660.0,101650.0,1.12429583]
[1737091108272,0.049191,101660.0,101650.0,1.12429583]
[1737091109280,0.049191,101660.0,101650.0,1.11199245]
[1737091110466,0.3608,101680.0,101650.0,1.11199245]
[1737091110671,0.049187,101670.0,101660.0,0.4505]
[1737091110979,0.14185167,101670.0,101660.0,0.51268092]
[1737091111481,0.14185167,101670.0,101660.0,1.03804758]
[1737091113680,0.049187,101670.0,101660.0,1.08723858]
[1737091113984,0.00912541,101680.0,101670.0,0.049186]
[1737091114176,0.00147576,101690.0,101670.0,0.50265067]
[1737091114372,0.05065376,101690.0,101680.0,0.4525]
[1737091114574,0.14331843,101690.0,101680.0,0.4978]
[1737091115180,0.14331843,101690.0,101680.0,0.90627349]
[1737091119480,0.14331843,101690.0,101680.0,0.81387349]
[1737091119679,0.14331843,101690.0,101680.0,0.4054]
[1737091121279,0.14331843,101690.0,101680.0,0.3608]
[1737091122980,0.14331843,101690.0,101680.0,0.36907238]
[1737091125392,0.14331843,101690.0,101680.0,0.00827238]
[1737091125594,0.23641843,101690.0,101670.0,0.57967291]
[1737091125786,0.14184567,101680.0,101670.0,0.57967291]
[1737091126297,0.14184567,101680.0,101670.0,0.81317349]
[1737091126887,0.14184567,101680.0,101670.0,0.82196667]
[1737091129392,0.17116798,101680.0,101670.0,0.82196667]
[1737091132998,0.17116798,101680.0,101670.0,0.64699376]
[1737091135198,0.17116798,101680.0,101670.0,0.28619376]
[1737091135795,0.17116798,101680.0,101670.0,0.47628709]
[1737091136400,0.17116798,101680.0,101670.0,0.46090887]
[1737091139700,0.17116798,101680.0,101670.0,0.82170887]
[1737091141199,0.17116798,101680.0,101670.0,0.58820829]
[1737091143110,0.17116798,101680.0,101670.0,0.82170887]
[1737091145702,0.049181,101680.0,101670.0,0.82170887]
[1737091145903,0.17116798,101680.0,101670.0,0.82170887]
[1737091146805,0.17116798,101680.0,101670.0,0.46090887]
[1737091147510,0.59296147,101680.0,101670.0,0.22740829]
[1737091147702,0.53196798,101680.0,101670.0,0.22740829]
[1737091147904,0.53196798,101680.0,101670.0,0.17471511]
[1737091148103,0.63846147,101680.0,101670.0,0.17471511]
[1737091148805,0.57746798,101680.0,101670.0,0.40821569]
[1737091150106,0.57746798,101680.0,101670.0,0.42359437]
[1737091150615,0.63846147,101680.0,101670.0,0.42359437]
[1737091150817,0.63846147,101680.0,101670.0,0.17471511]
[1737091154617,0.049186,101670.0,101660.0,0.77741064]
[1737091154822,0.11017949,101670.0,101660.0,0.77741064]
[1737091155215,0.11017949,101670.0,101660.0,0.87031064]
[1737091155618,0.049186,101670.0,101660.0,0.98049513]
[1737091155822,0.06099349,101680.0,101660.0,0.93130413]
[1737091156119,0.06099349,101680.0,101670.0,0.455585]
[1737091156120,0.11017549,101680.0,101670.0,0.455585]
[1737091157223,0.11017549,101680.0,101670.0,0.86366892]
[1737091157524,0.11017549,101680.0,101670.0,0.81448392]
[1737091157910,0.17116898,101680.0,101670.0,0.81448392]
[1737091158114,0.11017549,101680.0,101670.0,0.81448392]
[1737091158722,0.11017549,101680.0,101670.0,0.45368392]
[1737091158918,0.11017549,101680.0,101670.0,0.81448392]
[1737091159334,0.14210936,101680.0,101670.0,0.81448392]
[1737091159811,0.049182,101680.0,101670.0,0.81448392]
[1737091160018,0.049182,101680.0,101670.0,0.95659728]
[1737091160617,0.049182,101680.0,101670.0,0.86366992]
[1737091160819,0.049182,101680.0,101670.0,0.95659728]
[1737091161118,0.049182,101680.0,101670.0,1.41563278]
[1737091161916,0.049182,101680.0,101670.0,0.98026532]
[1737091162124,0.14210936,101680.0,101670.0,0.93107932]
[1737091162828,0.14210936,101680.0,101670.0,0.69788851]
[1737091163016,0.09292736,101680.0,101670.0,0.69788851]
[1737091163217,0.049182,101680.0,101670.0,0.69788851]
[1737091163621,0.049182,101680.0,101670.0,1.13323362]
[1737091166431,0.049182,101680.0,101670.0,1.18241962]
[1737091166623,0.049182,101680.0,101670.0,1.27534698]
[1737091169729,0.14210536,101690.0,101670.0,1.27534698]
[1737091169935,0.14210536,101690.0,101680.0,0.4058]
[1737091170233,0.14210536,101690.0,101680.0,0.451]
[1737091170624,0.049178,101690.0,101680.0,0.451]
[1737091170831,0.049178,101690.0,101680.0,0.54392736]
[1737091171030,0.049178,101690.0,101680.0,0.59310836]
[1737091171328,0.049178,101690.0,101680.0,0.76780958]
[1737091174633,0.049178,101690.0,101680.0,1.00074454]
[1737091175238,0.049178,101690.0,101680.0,0.90781718]
[1737091175531,0.14210536,101690.0,101680.0,0.90781718]
[1737091176229,0.14210536,101690.0,101680.0,0.91685834]
[1737091176738,0.049178,101690.0,101680.0,0.91685834]
[1737091177034,0.049178,101690.0,101680.0,0.68392338]
[1737091178136,0.14210536,101690.0,101680.0,0.68392338]
[1737091179134,0.14210536,101690.0,101680.0,0.91685834]
[1737091179336,0.049178,101690.0,101680.0,1.0097857]
[1737091179730,0.14210036,101700.0,101680.0,1.0097857]
[1737091179941,0.14210036,101700.0,101690.0,0.4081]
[1737091181234,0.14210036,101700.0,101690.0,0.5146358]
[1737091181536,0.17110462,101700.0,101690.0,0.5146358]
[1737091184144,0.17110462,101700.0,101690.0,0.74757076]
[1737091185228,0.21710462,101700.0,101690.0,0.74757076]
[1737091186243,0.21710462,101700.0,101690.0,0.44663579]
[1737091186447,0.21710462,101700.0,101690.0,0.17453581]
[1737091191241,0.21710462,101700.0,101690.0,0.1065358]
[1737091193548,0.21710462,101700.0,101690.0,0.23293496]
[1737091195840,0.21710462,101700.0,101690.0,0.59373496]
[1737091197351,0.21710462,101700.0,101690.0,1.24325138]
[1737091198444,0.21710462,101700.0,101690.0,0.81722346]
[1737091199748,0.21710462,101700.0,101690.0,0.52573495]
[1737091200342,0.11013881,101700.0,101690.0,0.57491095]
[1737091200559,0.049173,101700.0,101690.0,0.63587676]
[1737091201449,0.049173,101700.0,101690.0,0.85936526]
[1737091202251,0.61510577,101720.0,101690.0,1.27976975]
[1737091202441,0.20780577,101720.0,101710.0,0.06096581]
[1737091202638,0.36710158,101720.0,101700.0,0.547171]
[1737091202843,0.36710158,101720.0,101700.0,0.60813681]
[1737091203042,0.05063928,101720.0,101700.0,0.89962532]
[1737091203240,0.11013181,101710.0,101700.0,0.78948851]
[1737091203453,0.17109762,101710.0,101700.0,0.78948851]
[1737091204156,0.17109762,101710.0,101700.0,1.209893]
[1737091205049,0.11013181,101710.0,101700.0,1.259064]
[1737091205656,0.17109762,101710.0,101700.0,1.26790605]
[1737091206355,0.17109762,101710.0,101700.0,0.55601305]
[1737091206545,0.11013181,101710.0,101700.0,0.55601305]
[1737091206942,0.17109762,101710.0,101700.0,0.56831099]
[1737091207145,0.17109762,101710.0,101700.0,0.51913999]
[1737091207746,0.17109762,101710.0,101700.0,0.50684205]
[1737091208657,0.049166,101710.0,101700.0,0.50684205]
[1737091208858,0.17109762,101710.0,101700.0,0.50684205]
[1737091213560,0.17109762,101710.0,101700.0,0.51913999]
[1737091214059,0.17109762,101710.0,101700.0,0.50684205]
[1737091214356,0.17109762,101710.0,101700.0,0.51913999]
[1737091215959,0.17109762,101710.0,101700.0,0.50684205]
[1737091218363,0.11013181,101710.0,101700.0,0.50684205]
[1737091223463,0.11013181,101710.0,101700.0,0.51914007]
[1737091225066,0.11013181,101710.0,101700.0,0.52529243]
[1737091225866,0.11013181,101710.0,101700.0,0.16449243]
[1737091226165,0.11013181,101710.0,101700.0,0.16449117]
[1737091227162,0.11013181,101710.0,101700.0,0.14604205]
[1737091227468,0.11013181,101710.0,101700.0,0.16449778]
[1737091228467,0.11013181,101710.0,101700.0,0.45598629]
[1737091228868,0.05063828,101720.0,101700.0,0.87159457]
[1737091229163,0.11160409,101720.0,101710.0,0.409966]
[1737091229376,0.00147528,101720.0,101710.0,0.47093181]
[1737091229671,0.06244109,101720.0,101710.0,0.42226241]
[1737091230059,0.06244109,101720.0,101710.0,0.409966]
[1737091230366,0.06096581,101720.0,101710.0,0.409966]
[1737091230567,0.06096581,101720.0,101710.0,1.13101806]
[1737091231154,0.06096581,101720.0,101710.0,1.19198387]
[1737091231361,0.06096581,101720.0,101710.0,1.07531367]
[1737091231565,0.17109362,101720.0,101710.0,1.07531367]
[1737091231760,0.17109362,101720.0,101710.0,1.08146]
[1737091231954,0.11012781,101720.0,101710.0,1.08146]
[1737091232164,0.11012781,101720.0,101710.0,1.07531367]
[1737091233359,0.11012781,101720.0,101710.0,1.14241476]
[1737091233565,0.11012781,101720.0,101710.0,1.08144895]
[1737091234771,0.11012781,101720.0,101710.0,1.07531367]
[1737091235469,0.17109362,101720.0,101710.0,0.72105206]
[1737091235670,0.17109362,101720.0,101700.0,1.19728778]
[1737091235874,0.06096581,101710.0,101700.0,1.27668499]
[1737091236059,0.06096581,101710.0,101700.0,1.27055032]
[1737091237169,0.06096581,101710.0,101700.0,1.34979308]
[1737091237470,0.06096581,101710.0,101700.0,1.3559414]
[1737091239266,0.06096581,101710.0,101700.0,1.34364467]
[1737091239467,0.06096581,101710.0,101700.0,1.35594152]
[1737091240862,0.06096581,101710.0,101700.0,1.69957942]
[1737091241068,0.06096581,101710.0,101700.0,1.70573038]
[1737091241879,0.11012781,101720.0,101700.0,1.70572738]
[1737091242273,0.11012781,101720.0,101700.0,1.35594116]
[1737091242780,0.11012781,101720.0,101710.0,0.049166]
[1737091243076,0.11012781,101720.0,101710.0,0.06146285]
[1737091243379,0.11012781,101720.0,101710.0,0.0614624]
[1737091244172,0.11012781,101720.0,101710.0,0.049166]
[1737091244378,0.11012781,101720.0,101710.0,0.06146278]
[1737091245278,0.11012781,101720.0,101710.0,0.049166]
[1737091247682,0.11012781,101720.0,101710.0,0.06146273]
[1737091249271,0.11012781,101720.0,101710.0,0.06763036]
[1737091249475,0.11012781,101720.0,101710.0,0.06146273]
[1737091249677,0.06096581,101720.0,101710.0,0.06762749]
[1737091250497,0.06096581,101720.0,101710.0,0.06146273]
[1737091250796,0.06096581,101720.0,101710.0,0.42226273]
[1737091250986,0.06096581,101720.0,101710.0,0.42842771]
[1737091251298,0.06096581,101720.0,101710.0,0.3604277]
[1737091251596,0.06096581,101720.0,101710.0,0.35426272]
[1737091251797,0.06096581,101720.0,101710.0,0.40342872]
[1737091252498,0.06096581,101720.0,101710.0,0.46439453]
[1737091253699,0.06096581,101720.0,101710.0,1.18169255]
[1737091258291,0.06096581,101720.0,101710.0,1.53147877]
[1737091259200,0.06096581,101720.0,101710.0,1.18169255]
[1737091259603,0.06096581,101720.0,101710.0,1.1878625]
[1737091260505,0.548958,101730.0,101710.0,1.53764872]
[1737091260701,0.139,101730.0,101720.0,0.47092781]
[1737091260903,0.12716084,101740.0,101720.0,0.47092781]
[1737091260904,0.23727965,101740.0,101720.0,0.53806162]
[1737091261202,0.06096581,101740.0,101730.0,0.11012281]
[1737091261799,0.81312005,101750.0,101730.0,0.47092281]
[1737091262004,0.75215424,101750.0,101730.0,0.47092281]
[1737091262395,0.06096581,101740.0,101730.0,0.47713284]
[1737091263093,0.06096581,101740.0,101730.0,0.70985972]
[1737091263299,0.06096581,101740.0,101730.0,0.71594389]
[1737091263894,0.06096581,101740.0,101730.0,0.72214147]
[1737091264307,0.06096581,101740.0,101730.0,0.71594389]
[1737091265004,0.06096581,101740.0,101730.0,0.71594386]
[1737091265192,0.06096581,101740.0,101730.0,0.70364969]
[1737091265797,0.06096581,101740.0,101730.0,0.65213798]
[1737091266905,0.12193162,101740.0,101730.0,0.65213798]
[1737091267106,0.06096581,101740.0,101730.0,0.65213798]
[1737091268109,0.06096581,101740.0,101730.0,0.4194111]
[1737091269004,0.06096581,101740.0,101730.0,0.0586111]
[1737091269308,0.12193162,101740.0,101730.0,0.29133798]